Cogmind - Beta 13 @@@ ROGUE MODE // 2024.05.03 @ 17:24:37 // Winter2022/Polymind Player: Bace Troncons Result: Destroyed by Y-54 Guardian with Flak Gun Performance ------------- Evolutions (4) 2000 Regions Visited (9) 1800 Robots Destroyed (51) 255 Value Destroyed (1732) 1732 Prototype IDs (2) 40 Alien Tech Used (0) 0 Bonus (3748) 3748 TOTAL SCORE: 9415 Bonus ------- Polymind Skill 3426 High Alert Combat Kills 22 Aligned with FarCom 300 Cogmind --------- Core Integrity 0/850 Matter 0/0 Energy 28/100 System Corruption 0% Temperature Cool (18) Movement Core (50) Location -6/Factory Parts ------- > --- POWER (1) -------- (None) > --- PROPULSION (2) --- (None) > --- UTILITY (0) ------ (None) > --- WEAPON (1) ------- (None) > --- INVENTORY (0) ---- (None) Peak State ------------ > --- POWER ------------ Improved Deuterium Engine > --- PROPULSION ------- Light Treads Light Treads > --- UTILITY ---------- Improved Heat Sink Improved Heat Sink Improved Light Armor Plating > --- WEAPON ----------- Gatling Laser Flak Gun > --- INVENTORY -------- (None) [Rating: 23] Favorites ----------- Power Reinforced Ion Engine Engine Reinforced Ion Engine Power Core Light Nuclear Core Propulsion Light Treads Treads Light Treads Leg Carbon-fiber Leg Wheel Wheel Hover Unit Improved Hover Unit Flight Unit Flight Unit Utility Improved Heat Sink Device Improved Heat Sink Storage Medium Matter Pod Processor Targeting Computer Hackware Hacking Suite Protection Light Armor Plating Weapon Hammer Energy Gun Gatling Laser Ballistic Gun Assault Rifle Impact Weapon Hammer Special Melee Weapon Improved Datajack Build | -11 -10 -9 -9 -9 -8 -8 -7 -7 -6 ------- Run | Yrd Mat Mat Min Exi Min Mat Fac Sto Fac Slots Evolved . | . . . . . . . . . . Power . | . . . . . . . . . . Propulsion . | . . . . . . . . . . Utility . | . . . . . . . . . . Weapon . | . . . . . . . . . . Parts Attached . | . . . . . . . . . . Power . | . . . . . . . . . . Engine . | . . . . . . . . . . Core . | . . . . . . . . . . Reactor . | . . . . . . . . . . Propulsion . | . . . . . . . . . . Treads . | . . . . . . . . . . Leg . | . . . . . . . . . . Wheel . | . . . . . . . . . . Hover . | . . . . . . . . . . Flight . | . . . . . . . . . . Utility . | . . . . . . . . . . Device . | . . . . . . . . . . Storage . | . . . . . . . . . . Processor . | . . . . . . . . . . Hackware . | . . . . . . . . . . Protection . | . . . . . . . . . . Artifact . | . . . . . . . . . . Weapon . | . . . . . . . . . . Energy Gun . | . . . . . . . . . . Energy Cannon . | . . . . . . . . . . Ballistic Gun . | . . . . . . . . . . Ballistic Cannon . | . . . . . . . . . . Launcher . | . . . . . . . . . . Special Weapon . | . . . . . . . . . . Impact Weapon . | . . . . . . . . . . Slashing Weapon . | . . . . . . . . . . Piercing Weapon . | . . . . . . . . . . Special Melee Weapon . | . . . . . . . . . . Unidentified Prototypes . | . . . . . . . . . . Parts Lost 22 | . 2 4 . . . 1 . 7 8 Power 5 | . . 1 . . . . . 2 2 Propulsion 12 | . 2 2 . . . . . 4 4 Utility 4 | . . 1 . . . . . 1 2 Weapon 1 | . . . . . . 1 . . . Highest Loss Streak 5 | . 2 3 . . . 1 . 4 5 To Critical Strikes . | . . . . . . . . . . Average Slot Usage (%) 92 | . 91 96 100 100 100 99 100 88 77 Engine 14 | . 19 20 20 20 20 6 . 8 14 Core 2 | . . . . . . 11 16 2 1 Treads 14 | . . 18 40 40 24 . . 15 3 Leg 14 | . 29 21 . . 15 35 33 4 . Wheel 3 | . . . . . . . . 1 23 Flight 1 | . 7 . . . . . . . 3 Device 8 | . 14 7 . . 7 6 . 15 3 Storage 1 | . . . . . . . . . 11 Processor 3 | . . . . . . 11 16 4 . Protection 7 | . . 9 20 20 12 . . 7 1 Energy Gun 6 | . 14 10 . . 7 5 . 7 1 Ballistic Gun 9 | . 4 . . . . 22 33 18 4 Impact Weapon 5 | . . 9 20 20 12 . . . . Naked Turns 55 | . 27 . . . . 2 . 9 17 Heaviest Build 23 | . 7 15 15 15 15 14 11 23 23 Greatest Support 40 | 3 20 40 40 40 40 30 30 40 40 Greatest Overweight (x) 7 | . . . . . . . . 7 . Average Overweight (x) . | . . . . . . . . . . Largest Inventory Capacity 1 | . 1 1 1 1 1 1 1 1 1 Average Capacity . | . . 1 1 1 1 . 1 . . Most Carried . | . . . . . . . . . . Average Carried . | . . . . . . . . . . Final Capacity 1 | . 1 1 1 1 1 1 1 1 . Final Carried . | . . . . . . . . . . Class Distribution -------------------- 26% | Brawler 22% | Grunt 18% | Hunter 15% | Sentry 8% | Worker 3% | Swarmer Dominant Class ---------------- Grunt | -10/Materials Grunt | -9/Materials Brawler | -9/Mines Brawler | -9/Exiles Brawler | -8/Mines Hunter | -8/Materials Hunter | -7/Factory Sentry | -7/Storage Worker | -6/Factory Resources | -11 -10 -9 -9 -9 -8 -8 -7 -7 -6 ----------- Run | Yrd Mat Mat Min Exi Min Mat Fac Sto Fac Matter Collected 540 | . 8 . . . . 259 . 207 66 Remotely . | . . . . . . . . . . Salvage Created 1740 | . 286 33 . . 342 566 . 442 71 Parts 114 | . 26 19 . . 10 33 . 23 3 Haulers Intercepted 1 | . . . . . . 1 . . . Recyclers Shooed 1 | . 1 . . . . . . . . Parts Field Recycled . | . . . . . . . . . . Retrieved Matter . | . . . . . . . . . . Parts Self-Destructed . | . . . . . . . . . . Prevented . | . . . . . . . . . . Kills | -11 -10 -9 -9 -9 -8 -8 -7 -7 -6 ------- Run | Yrd Mat Mat Min Exi Min Mat Fac Sto Fac Combat Hostiles Destroyed 38 | . 5 4 . . 8 8 . 11 2 Melee 1 | . . 1 . . . . . . . Guns 32 | . 5 3 . . 3 8 . 11 2 Classes Destroyed 13 | . 5 2 . . 2 3 . 1 . Worker 3 | . 1 1 . . . 1 . . . Builder 2 | . 2 . . . . . . . . Tunneler 2 | . 2 . . . . . . . . Hauler 1 | . . . . . . 1 . . . Recycler 1 | . . . . . . 1 . . . Operator 2 | . . . . . . 1 . 1 . Watcher 2 | . . 1 . . . . . 1 . Swarmer 7 | . 2 . . . 3 . . . 2 Grunt 13 | . 3 2 . . 2 4 . 2 . Brawler 1 | . . . . . 1 . . . . Sentry 11 | . . 2 . . . 3 . 6 . Hunter 5 | . . . . . 2 1 . 2 . Programmer 1 | . . . . . . . . 1 . Best Kill Streak 4 | . 4 2 . . 4 4 . 3 2 Combat Bots Only 4 | . 2 1 . . 4 3 . 2 2 Max Kills in Single Turn 2 | . 1 1 . . 1 2 . 1 1 Gunslinging 1 | . . . . . . 1 . . . Exploded . | . . . . . . . . . . Melee 1 | . . 1 . . . . . . . Uniques/NPCs Destroyed . | . . . . . . . . . . Combat | -11 -10 -9 -9 -9 -8 -8 -7 -7 -6 -------- Run | Yrd Mat Mat Min Exi Min Mat Fac Sto Fac Hostile Shots Fired 483 | . 39 18 . . 28 59 . 254 85 Missed 151 | . 12 7 . . 4 20 . 76 32 Damage Taken 4418 | . 354 343 . . 352 576 . 1551 1242 Core 1582 | . 100 161 . . 80 149 . 241 851 Absorbed by Shields . | . . . . . . . . . . Ignored by Resistances 76 | . . . . . . 30 . 46 . Core Remaining (%) 67 | 100 60 . . . 39 72 . 65 . Volleys Fired 190 | . 66 13 . . 8 47 . 39 17 Largest 2 | . 1 1 . . 1 2 . 2 1 Hottest 108 | . 40 40 . . 69 69 . 108 23 Shots Fired 264 | . 66 13 . . 8 82 . 78 17 Gun 264 | . 66 13 . . 8 82 . 78 17 Cannon . | . . . . . . . . . . Launcher . | . . . . . . . . . . Special . | . . . . . . . . . . Kinetic 159 | . 21 . . . . 70 . 51 17 Thermal 105 | . 45 13 . . 8 12 . 27 . Explosive . | . . . . . . . . . . Electromagnetic . | . . . . . . . . . . Robot Hit Streak 17 | . 10 3 . . 5 13 . 17 3 Robot Miss Streak 6 | . 3 2 . . 1 3 . 3 6 Penetration Max 1 | . . . . . . 1 . . . Secondary Targets 1 | . . . . . . 1 . . . Max Gunslinging Chain 1 | . . . . . . 1 . . . Shots Hit Robots 195 | . 46 12 . . 13 52 . 64 8 Core Hits 120 | . 19 8 . . 5 23 . 61 4 Critical Kills . | . . . . . . . . . . Critical Parts Destroyed 3 | . . . . . 3 . . . . Critical Strikes 4 | . . . . . 4 . . . . Burn 1 | . . . . . 1 . . . . Smash 3 | . . . . . 3 . . . . Melee Attacks 12 | . . 5 . . 7 . . . . Impact 12 | . . 5 . . 7 . . . . Slashing . | . . . . . . . . . . Piercing . | . . . . . . . . . . Sneak Attacks 4 | . . 2 . . 2 . . . . Combat Hostiles 3 | . . 1 . . 2 . . . . Follow-up Attacks . | . . . . . . . . . . Damage Inflicted 3565 | . 482 252 . . 360 897 . 1444 130 Guns 3177 | . 482 91 . . 133 897 . 1444 130 Cannons . | . . . . . . . . . . Explosions . | . . . . . . . . . . Melee 388 | . . 161 . . 227 . . . . Ramming . | . . . . . . . . . . Kinetic 1717 | . 126 . . . . 705 . 756 130 Thermal 1460 | . 356 91 . . 133 192 . 688 . Explosive . | . . . . . . . . . . Electromagnetic . | . . . . . . . . . . Impact 388 | . . 161 . . 227 . . . . Slashing . | . . . . . . . . . . Piercing . | . . . . . . . . . . Highest Corruption 1 | . . . . . . . . 1 . Average Corruption 1 | . . . . . . . . 1 . Corruption Purged . | . . . . . . . . . . Corruption Blocked . | . . . . . . . . . . Effects 2 | . . . . . . . . 2 . Heat Flow Errors 1 | . . . . . . . . 1 . Data Loss (minor) 1 | . . . . . . . . 1 . Overload Shots . | . . . . . . . . . . Overflow Damage 137 | . . . . . 137 . . . . Projectiles . | . . . . . . . . . . Explosions . | . . . . . . . . . . Melee 137 | . . . . . 137 . . . . Knockbacks 1 | . . 1 . . . . . . . Impact 1 | . . 1 . . . . . . . Kinetic . | . . . . . . . . . . Secondary . | . . . . . . . . . . Self-Inflicted Damage . | . . . . . . . . . . Shots . | . . . . . . . . . . Rammed 1 | . . . . . . . . . 1 Targets Rammed 1 | . . . . . . . . . 1 Kicked . | . . . . . . . . . . Crushed . | . . . . . . . . . . Highest Temperature 184 | . 86 60 . . 23 40 . 184 21 Average Temperature 33 | . 50 19 . . 10 13 . 45 8 Received Heat Transfer 1170 | . 198 78 . . 63 261 . 471 99 Siege Activations . | . . . . . . . . . . Robots Corrupted . | . . . . . . . . . . Combat Hostiles . | . . . . . . . . . . Parts Fried 3 | . . . . . 3 . . . . Impact Corruptions 8 | . . . . . 8 . . . . Robots Melted . | . . . . . . . . . . Combat Hostiles . | . . . . . . . . . . Parts Melted 8 | . . 1 . . . . . 7 . Heat Transferred 3178 | . 800 200 . . 333 370 . 1475 . Parts Sabotaged . | . . . . . . . . . . Parts Stolen . | . . . . . . . . . . Parts Stripped . | . . . . . . . . . . Power Chain Reactions . | . . . . . . . . . . Alert | -11 -10 -9 -9 -9 -8 -8 -7 -7 -6 ------- Run | Yrd Mat Mat Min Exi Min Mat Fac Sto Fac Peak Influence 463 | . 190 222 86 . 190 463 210 341 241 Initial 210 | . . 79 86 . . 74 210 95 133 Average 156 | . 119 158 86 . 105 212 210 194 134 Maximum Alert Level 2 | . . 1 . . . 2 1 1 1 Low Security (%) 73 | 100 100 67 100 . 100 37 . 64 90 Level 1 25 | . . 32 . . . 56 100 35 9 Level 2 . | . . . . . . 5 . . . Level 3 . | . . . . . . . . . . Level 4 . | . . . . . . . . . . Level 5 . | . . . . . . . . . . High Security . | . . . . . . . . . . Max Security . | . . . . . . . . . . Squads Dispatched 6 | . . . . . . 2 . 2 2 Investigation . | . . . . . . . . . . Extermination 1 | . . . . . . . . 1 . Reinforcement 5 | . . . . . . 2 . 1 2 Assault . | . . . . . . . . . . Garrison . | . . . . . . . . . . Intercept . | . . . . . . . . . . Searches Triggered . | . . . . . . . . . . Construction Impeded . | . . . . . . . . . . Haulers Reinforced . | . . . . . . . . . . Active Scanning Responses . | . . . . . . . . . . Cargo Convoy Interrupts . | . . . . . . . . . . Stealth | -11 -10 -9 -9 -9 -8 -8 -7 -7 -6 --------- Run | Yrd Mat Mat Min Exi Min Mat Fac Sto Fac Distress Signals 2 | . . 2 . . . . . . . Communications Jammed . | . . . . . . . . . . Distress Signals . | . . . . . . . . . . Times Spotted 84 | . 13 9 . . 10 22 . 18 12 Peak Tracking Total 6 | . 4 3 . . 3 6 . 4 3 Tactical Retreats 9 | . 1 . . . . 4 . 1 3 Traps | -11 -10 -9 -9 -9 -8 -8 -7 -7 -6 ------- Run | Yrd Mat Mat Min Exi Min Mat Fac Sto Fac Traps Triggered . | . . . . . . . . . . Indirectly . | . . . . . . . . . . Trap Hack Attempts . | . . . . . . . . . . Triggered . | . . . . . . . . . . Disarmed . | . . . . . . . . . . Reprogrammed . | . . . . . . . . . . Reused . | . . . . . . . . . . Traps Extracted . | . . . . . . . . . . Installed . | . . . . . . . . . . Triggered . | . . . . . . . . . . Machines | -11 -10 -9 -9 -9 -8 -8 -7 -7 -6 ---------- Run | Yrd Mat Mat Min Exi Min Mat Fac Sto Fac Machines Disabled 2 | . . . . . . 2 . . . Max in Single Turn 1 | . . . . . . 1 . . . Machines Repaired . | . . . . . . . . . . Machines Dismantled . | . . . . . . . . . . Machines Sabotaged . | . . . . . . . . . . Overloaded Fab Kills . | . . . . . . . . . . Hacking | -11 -10 -9 -9 -9 -8 -8 -7 -7 -6 --------- Run | Yrd Mat Mat Min Exi Min Mat Fac Sto Fac Machines Accessed 3 | . 1 1 . . . . . . 1 Terminals 3 | . 1 1 . . . . . . 1 Fabricators . | . . . . . . . . . . Repair Stations . | . . . . . . . . . . Recycling Units . | . . . . . . . . . . Scanalyzers . | . . . . . . . . . . Garrison Access . | . . . . . . . . . . Total Hacks 6 | . 1 2 . . . . . . 3 Successful 5 | . 1 1 . . . . . . 3 Failed 1 | . . 1 . . . . . . . Catastrophic . | . . . . . . . . . . Database Lockouts . | . . . . . . . . . . Manual 2 | . 1 1 . . . . . . . Terminals 6 | . 1 2 . . . . . . 3 Fabricators . | . . . . . . . . . . Repair Stations . | . . . . . . . . . . Recycling Units . | . . . . . . . . . . Scanalyzers . | . . . . . . . . . . Garrison Access . | . . . . . . . . . . Terminal Hacks 5 | . 1 1 . . . . . . 3 Record 1 | . . 1 . . . . . . . Robot Analysis 1 | . . . . . . . . . 1 Prototype ID Bank 1 | . . . . . . . . . 1 Branch Access Points 1 | . 1 . . . . . . . . Zone Layout 1 | . . . . . . . . . 1 Fabricator Hacks . | . . . . . . . . . . Repair Station Hacks . | . . . . . . . . . . Recycling Unit Hacks . | . . . . . . . . . . Scanalyzer . | . . . . . . . . . . Garrison Access Hacks . | . . . . . . . . . . Unauthorized Hacks . | . . . . . . . . . . Terminals . | . . . . . . . . . . Fabricators . | . . . . . . . . . . Repair Stations . | . . . . . . . . . . Recycling Units . | . . . . . . . . . . Scanalyzers . | . . . . . . . . . . Garrison Access . | . . . . . . . . . . Data Cores Recovered . | . . . . . . . . . . Used . | . . . . . . . . . . Hacking Detections 1 | . . 1 . . . . . . . Full Trace Events . | . . . . . . . . . . Feedback Events . | . . . . . . . . . . Feedback Blocked . | . . . . . . . . . . Robot Schematics Acquired . | . . . . . . . . . . Robots Built . | . . . . . . . . . . Authchips . | . . . . . . . . . . Time . | . . . . . . . . . . Total Robot Build Rating . | . . . . . . . . . . Part Schematics Acquired . | . . . . . . . . . . Parts Built . | . . . . . . . . . . Authchips . | . . . . . . . . . . Time . | . . . . . . . . . . Total Part Build Rating . | . . . . . . . . . . Parts Repaired . | . . . . . . . . . . Time . | . . . . . . . . . . Parts Recycled . | . . . . . . . . . . Recycled Matter . | . . . . . . . . . . Retrieved Matter . | . . . . . . . . . . Retrieved Components . | . . . . . . . . . . Parts Scanalyzed . | . . . . . . . . . . Part Schematics Acquired . | . . . . . . . . . . Parts Damaged . | . . . . . . . . . . Bothacking | -11 -10 -9 -9 -9 -8 -8 -7 -7 -6 ------------ Run | Yrd Mat Mat Min Exi Min Mat Fac Sto Fac Used RIF Installer . | . . . . . . . . . . Robots Hacked 11 | . 2 2 . . 1 1 . 2 3 Non-combat 2 | . . . . . . . . . 2 Combat 9 | . 2 2 . . 1 1 . 2 1 Robot Hacks Applied 13 | . 2 2 . . 1 2 . 2 4 find_chute 1 | . . . . . . . . . 1 find_terminals 1 | . . . . . . . . . 1 find_shortcuts 9 | . 2 2 . . 1 1 . 2 1 find_garrison 2 | . . . . . . 1 . . 1 Relay Couplers Released . | . . . . . . . . . . Fabnet Peak Effective % . | . . . . . . . . . . Robots Rewired . | . . . . . . . . . . Allies Hacked . | . . . . . . . . . . Hacks Repelled . | . . . . . . . . . . Allies | -11 -10 -9 -9 -9 -8 -8 -7 -7 -6 -------- Run | Yrd Mat Mat Min Exi Min Mat Fac Sto Fac Total Allies . | . . . . . . . . . . Largest Group . | . . . . . . . . . . Highest-Rated Group . | . . . . . . . . . . Highest-Rated Ally . | . . . . . . . . . . Total Orders . | . . . . . . . . . . Ally Attacks . | . . . . . . . . . . Total Damage . | . . . . . . . . . . Kills . | . . . . . . . . . . Allies Corrupted . | . . . . . . . . . . Allies Melted . | . . . . . . . . . . Intel | -11 -10 -9 -9 -9 -8 -8 -7 -7 -6 ------- Run | Yrd Mat Mat Min Exi Min Mat Fac Sto Fac Robot Analysis Total 10 | . 2 1 . . 1 1 . 2 3 Derelict Logs Recovered . | . . . . . . . . . . Drone Launches . | . . . . . . . . . . Drone Recoveries . | . . . . . . . . . . Exploration | -11 -10 -9 -9 -9 -8 -8 -7 -7 -6 ------------- Run | Yrd Mat Mat Min Exi Min Mat Fac Sto Fac Turns Passed 2777 | 9 312 313 175 247 274 397 64 597 389 Spaces Moved 1883 | 18 196 206 110 155 166 181 54 334 463 Core 217 | 18 39 8 . . 1 2 . 80 69 Treads 627 | . . 79 110 155 87 . . 170 26 Legs 610 | . 115 119 . . 78 179 54 65 . Wheels 299 | . . . . . . . . 19 280 Hover 69 | . . . . . . . . . 69 Flight 61 | . 42 . . . . . . . 19 Fastest Speed 32 | 50 37 50 160 160 50 50 120 50 32 Average Speed 115 | 50 88 132 160 160 140 119 120 132 74 Slowest Speed 400 | 50 120 160 160 160 160 120 120 400 160 Overloaded Moves . | . . . . . . . . . . Propulsion Burnouts . | . . . . . . . . . . Robots Hopped . | . . . . . . . . . . Cave-ins Triggered . | . . . . . . . . . . Exploration Rate (%) 29 | 3 35 29 35 55 43 27 2 53 16 Regions Visited 9 Branch Regions 4 Pre-discovered Areas . | . . . . . . . . . . Known Exits Taken . | . . . . . . . . . . Unknown Exits Taken 9 | 1 1 1 1 1 1 1 1 1 . Scrap Searched 2 | . . . 1 . 1 . . . . Spaces Dug . | . . . . . . . . . . Terrain Destroyed . | . . . . . . . . . . Melee . | . . . . . . . . . . Projectile . | . . . . . . . . . . AOE . | . . . . . . . . . . Terrain Rammed . | . . . . . . . . . . Walls Destroyed . | . . . . . . . . . . Machines Disabled . | . . . . . . . . . . Actions | -11 -10 -9 -9 -9 -8 -8 -7 -7 -6 --------- Run | Yrd Mat Mat Min Exi Min Mat Fac Sto Fac Total 2193 | 17 273 224 109 154 186 280 53 404 493 Wait 114 | . 12 1 . . 6 53 . 32 10 Move 1874 | 17 195 205 109 154 165 180 53 333 463 Hop . | . . . . . . . . . . Pick Up . | . . . . . . . . . . Fast Attach . | . . . . . . . . . . Attach . | . . . . . . . . . . Detach . | . . . . . . . . . . Swap . | . . . . . . . . . . Drop . | . . . . . . . . . . Fire 190 | . 66 13 . . 8 47 . 39 17 Melee 12 | . . 5 . . 7 . . . . Ram 1 | . . . . . . . . . 1 Kick . | . . . . . . . . . . Crush . | . . . . . . . . . . Escape Stasis . | . . . . . . . . . . Rewire 2 | . . . . . . . . . 2 Trap . | . . . . . . . . . . Miscellaneous . | . . . . . . . . . . Route ------- -11/Scrapyard -10/Materials (discovered 2 exits: *Mat / Min) -9/Materials -9/Mines -9/Exiles -8/Mines -8/Materials -7/Factory -7/Storage -6/Factory History --------- Turn | Location | Event 3 | -11/Scrapyard | Discovered new exit (range 15) 10 | -11/Scrapyard | Entered Materials 267 | -10/Materials | Identified exit to Mines 305 | -10/Materials | Discovered new exit (range 12) 322 | -10/Materials | Entered another Materials area 505 | -9/Materials | Lost 3 parts (1p2n) 594 | -9/Materials | Discovered new exit (range 13) 635 | -9/Materials | Entered Mines 650 | -9/Mines | Met a Derelict bent on vengeance 802 | -9/Mines | Deemed a non-threat by the Exiles lab entrance 803 | -9/Mines | Discovered new exit (range 5) 810 | -9/Mines | Entered Exiles 849 | -9/Exiles | Met 8R-AWN 878 | -9/Exiles | Met EX-HEX 921 | -9/Exiles | Met EX-BIN 940 | -9/Exiles | Aligned with FarCom system 942 | -9/Exiles | Given EX-Vault access code 986 | -9/Exiles | Met EX-DEC 1044 | -9/Exiles | Discovered new exit (range 10) 1057 | -9/Exiles | Entered Mines 1228 | -8/Mines | Core integrity fell below 50% 1318 | -8/Mines | Discovered new exit (range 11) 1331 | -8/Mines | Entered Materials 1722 | -8/Materials | Discovered new exit (range 7) 1728 | -8/Materials | Entered Factory 1776 | -7/Factory | Discovered new exit (range 13) 1792 | -7/Factory | Entered Storage 1914 | -7/Storage | Lost 3 parts (1p2n) 2259 | -7/Storage | Lost 4 parts (1p2n1u) 2368 | -7/Storage | Discovered new exit (range 14) 2389 | -7/Storage | Entered Factory 2462 | -6/Factory | Spotted B-75 Beast 2486 | -6/Factory | Core integrity fell below 50% 2513 | -6/Factory | Lost 5 parts (1p2n2u) 2736 | -6/Factory | Core integrity fell below 20% 2778 | -6/Factory | Destroyed by Y-54 Guardian with Flak Gun Last Messages --------------- Replicator. 02752_ VTOL Module destroyed. 02752_ K-01 Serf cleans the Nuclear Reactor. 02754_ Lgt. Nuclear Core destroyed. 02756_ S-27 Virus destroyed. 02758_ Acquired 29 matter. 02760_ K-01 Serf cleans the Nuclear Reactor. 02764_ Destroyed VTOL Module. 02764_ K-01 Serf cleans the Nuclear Reactor. 02766_ S-27 Virus destroyed. 02767_ Acquired 37 matter. 02772_ VTOL Module destroyed. 02774_ Released control of S-27 Virus. 02776_ Slammed into Y-54 Guardian. 02777_ Attempting to rewire S-27 Virus. 02777_ S-27 Virus is rebooting, system inaccessible. 02778_ Attempting to rewire S-27 Virus. 02778_ S-27 Virus is rebooting, system inaccessible. Map ----- +----------------------------------------------------+ | # "" ## #?? #?????#// | | # "" ## #??#######+####???# | | # ## #?? + #???# "Y" | | # ! ## #?? # #???# """ ! | | # ## """ #?? # ##### | | # ## """ #?? # % | | # """ ## """ #??####### ######## | | #[ """ ## #?????#### #??????? | | # """ ## #?????# ######## | | # ## #?????# ##### # # | | ##+###### """ #?????# #???# # """ # | | ????????# """ #?????# #???# + """ + | | ??????? + """*#?????# #???# # """ # | | ??????### "" #??????????????? ? ?????????? | | ????????# "" #?????????????????????????????? | | ????????# * =% #?????????????????????????????? | | ????????# [ #?????????????????????????????? | | ???????#######+##???????#?????????????????????? | | ???????# #?????? #?????????????????????? | | ???????#"S """ ####### #?????????????????????? | | ???????#""" """ + / ]???????????????? | | ???????# "" """ ####### #?????????????????????? | | ???????# #??????k#?????????????????????? | | ???????#! """ #???### ###???????????????????? | | ???????# """ #???# #???????????????????? | | ???????# [ """ ##### @ #???????????????????? | | ???????# + usY +???????????????????? | | ???????############## k #???????????????????? | | ????????????????????# #???????????????????? | | ????????????????????## A ##???????????????????? | | ?????????????????????# #????????????????????? | | ????????????????????? #????????????????????? | | ????????????????????? #????????????????????? | | ????????????????????? #????????????????????? | | ????????????????????? # ##????????????????????? | | ????????????????????? ? #?????????????????????? | | ????????????????????? ? #?????????????????????? | | ????????????????????? ?+#?????????????????????? | | ????????????????????? ? ?????????????????????? | | ???????+????????????? ? g?????????????????????? | | ????????????????????? ? "?????????????????????? | | ????????????????????? ? ??????????????????????? | | ????+?????????????????????????????????????????? | | ??????????????????????????????????????????????? | | ??????????????????????????????????????????????? | | ??????????????????????????????????????????????? | | ??????????????????????????????????????????????? | | ??????????????????????????????????????????????? | | ??????????????????????????????????????????????? | | ??????????????????????????????????????????????? | +----------------------------------------------------+ Best States ------------- Heat Dissipation 46 Energy Generation 23 Energy Capacity 240 Matter Stores 200 Matter Capacity 200 Sight Range 16 Terrain Scan Density 10 Armor Coverage 150 Resistance: KI 25 Resistance: EX 50 Resistance: I 25 Resistance: S 25 Evasion (%) 63 Targeting Accuracy 5 Recoil Reduction 2 Offensive Hacking 10 Defensive Hacking 10 Item Schematics ----------------- None Robot Schematics ------------------ None Fabricated ------------ Nothing Alien Tech Used ----------------- None Achievements -------------- None Challenges ------------ None Polymind | -11 -10 -9 -9 -9 -8 -8 -7 -7 -6 ---------- Run | Yrd Mat Mat Min Exi Min Mat Fac Sto Fac Hosts 12 | . 2 2 . . 1 1 . 3 3 Combat Hostiles 9 | . 2 2 . . 1 1 . 2 1 Allies . | . . . . . . . . . . Unique Host Classes 7 | . 2 1 . . . 1 . 2 1 Average Host Suspicion 74 | . 99 89 21 . 84 83 18 91 81 Unsuspicious Activity 178 | . 7 18 . . . . . 58 95 Returns to Shadow . | . . . . . . . . . . Fuzzy Dispatches . | . . . . . . . . . . Protomatter Created 270 | . 20 58 . . 23 36 . 133 . Used 271 | . 21 38 . . 45 34 . 107 26 Decayed . | . . . . . . . . . . Highest Spend 51 | . 15 23 . . 45 34 . 51 14 Top 5 Hosts by Kills: H-55 Commando (-8/Materials: 10) B-36 Bruiser (-9/Materials: 6) Y-54 Guardian (-7/Storage: 6) G-34 Mercenary (-10/Materials: 5) G-50 Soldier (-8/Mines: 3) Game ------ Seed SpectralSensorGun Manual? 0 Play Time 00:28:10 Cumulative 52.3 hours Start 2024.05.03 @ 17:01:01 End 2024.05.03 @ 17:24:37 Sessions 1 Manual Loads 0 Difficulty Rogue Special Mode Winter2022/Polymind Game No. 79 Rogue 79 Adventurer 0 Explorer 0 Win Type - Total 0 Types 0/0/0/0/0/0/0/0/0 Lore% 27 Gallery% 35 Achievement% 27 Wizard Run 0 Options --------- Layout 1 ASCII 0 Keyboard 1 Movement Numpad Keybinds 0 Fullscreen 1 Font 24/Smallcaps Map View 50x35 Zoom Use 0% Tactical HUD 1 Map Filters NONE Filters NONE Steam 1 RUN: cb4ecb05-72ea-45b9-8e7f-b7d48cb74302